bitfinex/quotes_SOLUSD_20251030
["timestamp","ask_amount","ask_price","bid_price","bid_amount"]
[1761853222632,67.50255896,179.68,179.57,147.46]
[1761853222633,5.90840736,179.58,179.57,147.46]
[1761853222836,24.65740147,179.58,179.57,147.46]
[1761853223037,11.14083687,179.58,179.57,148.15]
[1761853223324,9.78882769,179.63,179.57,148.15]
[1761853223494,4.02442862,179.62,179.58,0.69]
[1761853223697,9.78882769,179.65,179.58,0.69]
[1761853224006,5.90840736,179.74,179.58,0.69]
[1761853224007,9.78882769,179.7,179.6,20.592]
[1761853224199,4.02511657,179.69,179.6,20.592]
[1761853224399,0.62,179.73,179.57,148.15]
[1761853224599,21.212,179.72,179.58,0.69]
[1761853224898,9.78882769,179.7,179.58,0.69]
[1761853225112,4.0230027,179.69,179.58,0.69]
[1761853225425,5.90840736,179.69,179.58,0.69]
[1761853225591,4.0201973,179.68,179.63,5.90840736]
[1761853225791,9.78882769,179.71,179.58,0.69]
[1761853226117,26.50040736,179.64,179.58,6.59840736]
[1761853226321,20.592,179.64,179.59,5.90840736]
[1761853226622,20.592,179.67,179.59,0.69]
[1761853226918,5.56449144,179.72,179.64,5.90840736]
[1761853227102,5.56449144,179.72,179.6,0.69]
[1761853227307,5.5620446,179.79,179.63,5.90840736]
[1761853227507,5.90840736,179.76,179.61,9.78882769]
[1761853227837,5.5620446,179.79,179.72,5.90840736]
[1761853228022,4.01901397,179.78,179.73,5.90840736]
[1761853228321,0.62,179.83,179.66,9.78882769]
[1761853228322,0.62,179.86,179.77,5.90840736]
[1761853228509,9.78882769,179.89,179.68,30.66515083]
[1761853228510,5.90840736,179.84,179.68,30.66515083]
[1761853228707,4.01960045,179.83,179.69,0.69]
[1761853228912,4.01937819,179.82,179.69,0.69]
[1761853229211,5.90840736,179.74,179.69,0.69]
[1761853229523,5.90840736,179.74,179.61,5.90840736]
[1761853229524,20.592,179.67,179.61,5.90840736]
[1761853229699,20.592,179.67,179.5,0.0558]
[1761853229700,17.69723504,179.74,179.65,0.69]
[1761853229901,4.55957693,179.78,179.63,6.59840736]
[1761853229902,8.17139923,179.73,179.63,6.59840736]
[1761853230105,5.56393946,179.73,179.6,20.592]
[1761853230326,5.56290828,179.77,179.61,30.38082769]
[1761853230527,5.90840736,179.8,179.74,5.90840736]
[1761853230826,4.01892051,179.79,179.74,5.90840736]
[1761853231120,9.52686711,179.84,179.75,0.69]
[1761853231303,5.90840736,179.81,179.76,5.90840736]
[1761853231502,0.62,179.87,179.78,5.90840736]
[1761853231700,5.5598799,179.86,179.79,5.90840736]
[1761853231928,4.0202322,179.85,179.81,5.90840736]
[1761853232112,9.58046571,179.85,179.82,0.69]
[1761853232299,26.15223351,179.85,179.82,0.69]
[1761853232620,20.592,179.81,179.74,0.69]
[1761853232824,20.592,179.79,179.71,0.69]
[1761853233001,20.592,179.79,179.74,5.90840736]
[1761853233204,2.90890465,179.82,179.71,0.69]
[1761853233430,2.90890465,179.82,179.78,5.90840736]
[1761853233617,20.592,179.8,179.71,0.69]
[1761853233816,20.592,179.76,179.71,0.69]
[1761853234019,20.592,179.78,179.75,5.90840736]
[1761853234206,3.61926476,179.8,179.76,5.90840736]
[1761853234526,5.90840736,179.8,179.75,5.90840736]
[1761853234710,5.90840736,179.8,179.74,5.90840736]
[1761853234908,20.592,179.75,179.72,6.59840736]
[1761853235229,20.592,179.75,179.74,5.90840736]
[1761853235411,9.52821214,179.79,179.73,0.69]
[1761853235613,20.592,179.75,179.73,5.90840736]
[1761853235919,20.592,179.76,179.74,6.59840736]
[1761853236096,20.592,179.76,179.74,0.69]
[1761853236301,20.592,179.76,179.72,5.90840736]
[1761853236302,26.15501697,179.76,179.72,5.90840736]
[1761853236931,20.592,179.74,179.73,6.59840736]
[1761853237314,20.592,179.76,179.73,0.69]
[1761853237504,20.592,179.76,179.73,6.59840736]
[1761853237702,20.592,179.76,179.74,0.69]
[1761853237925,20.592,179.75,179.74,0.69]
[1761853238124,26.15501829,179.76,179.74,0.69]
[1761853238432,20.592,179.76,179.74,6.59840736]
[1761853238804,20.592,179.76,179.72,6.59840736]
[1761853239005,20.592,179.73,179.69,5.90840736]
[1761853239319,20.592,179.73,179.64,0.69]
[1761853239320,20.592,179.73,179.7,5.90840736]
[1761853239516,20.592,179.73,179.71,9.64607088]
[1761853239931,20.592,179.73,179.72,0.66]
[1761853241140,20.592,179.73,179.69,0.66]
[1761853241334,20.592,179.73,179.61,61.7]
[1761853241335,29.57807088,179.73,179.65,0.66]
[1761853241647,20.592,179.73,179.65,0.66]
[1761853241941,20.592,179.73,179.7,8.98607088]
[1761853242238,20.592,179.73,179.68,5.56542729]
[1761853242539,24.2186695,179.75,179.71,8.98607088]
[1761853242741,20.592,179.75,179.69,0.66]
[1761853242942,24.2186695,179.75,179.69,0.66]
[1761853243342,8.98607088,179.72,179.67,8.98607088]
[1761853243659,4.2466695,179.77,179.57,147.46]
[1761853243660,20.592,179.67,179.57,147.46]
[1761853243816,20.592,179.71,179.61,0.66]
[1761853244010,20.592,179.67,179.62,8.98607088]
[1761853244227,20.592,179.67,179.61,0.66]
[1761853244545,20.592,179.66,179.58,0.66]
[1761853244711,21.212,179.66,179.57,147.46]
[1761853244915,20.592,179.66,179.63,8.98607088]
[1761853245144,20.592,179.67,179.58,0.66]
[1761853245538,8.98607088,179.66,179.58,0.66]
[1761853245718,20.592,179.67,179.63,8.98607088]
[1761853245920,20.592,179.67,179.66,8.98607088]
[1761853246231,3.62569853,179.75,179.66,5.56596387]
[1761853246429,0.62,179.82,179.66,5.56596387]
[1761853246430,3.62569853,179.81,179.67,0.66]
[1761853246635,8.98607088,179.77,179.67,0.66]
[1761853246833,4.02864817,179.76,179.72,8.98607088]
[1761853247119,20.592,179.75,179.67,0.66]
[1761853247340,3.62569853,179.8,179.74,8.98607088]
[1761853247537,3.62569853,179.86,179.79,8.98607088]
[1761853247737,7.70504339,179.85,179.82,8.98607088]
[1761853248052,4.03088029,179.84,179.83,0.66]
[1761853248259,3.62569853,179.9,179.83,0.66]
[1761853248562,8.98607088,179.85,179.79,0.66]
[1761853248846,16.6943761,179.84,179.78,8.98607088]
[1761853249052,4.03325082,179.83,179.78,9.64607088]
[1761853249256,20.592,179.8,179.79,0.66]
[1761853249554,3.62569853,179.82,179.79,9.64607088]
[1761853249732,20.592,179.87,179.81,8.98607088]
[1761853249933,4.03439586,179.86,179.84,8.98607088]
[1761853250246,4.03439586,179.86,179.8,0.66]
[1761853250450,24.62639586,179.85,179.84,8.98607088]
[1761853250759,3.62569853,179.87,179.84,8.98607088]
[1761853251057,20.592,179.88,179.86,8.98607088]
[1761853251233,4.03681795,179.87,179.86,8.98607088]
[1761853251436,4.03681795,179.87,179.83,8.98607088]
[1761853251619,4.03681795,179.86,179.82,0.66]
[1761853251822,4.03681795,179.86,179.82,9.64607088]
[1761853252043,13.22240109,179.86,179.83,0.66]
[1761853252253,4.03681795,179.85,179.82,8.98607088]
[1761853252448,9.18558314,179.86,179.82,9.64607088]
[1761853252748,4.03533435,179.85,179.82,0.66]
[1761853253053,4.03533435,179.85,179.83,0.66]
[1761853253430,4.03502877,179.84,179.83,9.64607088]
[1761853253644,24.21769853,179.87,179.83,0.66]
[1761853253948,20.592,179.85,179.82,8.98607088]
[1761853254248,20.592,179.85,179.82,9.64607088]
[1761853254449,20.592,179.85,179.69,29.82457704]
[1761853254450,26.1522802,179.85,179.76,0.66]
[1761853254652,16.65420849,179.84,179.7,0.94432314]
[1761853254856,8.98607088,179.82,179.77,8.98607088]
[1761853255049,8.98607088,179.81,179.76,8.98607088]
[1761853255239,8.98607088,179.81,179.71,10.44882769]
[1761853255240,12.61873267,179.81,179.75,8.98607088]
[1761853255431,3.63266179,179.81,179.79,8.98607088]
[1761853255629,20.592,179.81,179.8,8.98607088]
[1761853255843,20.592,179.83,179.8,8.98607088]
[1761853256027,24.22466179,179.83,179.81,0.66]
[1761853256231,3.63266179,179.84,179.81,9.64607088]
[1761853256431,3.63266179,179.84,179.78,0.66]
[1761853256432,13.02471764,179.83,179.78,0.66]
[1761853256729,4.03832295,179.82,179.78,9.64607088]
[1761853257052,4.03854618,179.81,179.78,9.64607088]
[1761853257255,8.98607088,179.83,179.78,9.64607088]
[1761853257556,4.03950248,179.82,179.78,9.64607088]
[1761853257723,20.592,179.8,179.78,0.66]
[1761853258127,20.592,179.8,179.78,9.64607088]
[1761853258653,20.592,179.81,179.79,0.66]
[1761853258864,20.592,179.81,179.79,9.64607088]
[1761853259038,20.592,179.81,179.8,8.98607088]
[1761853259356,26.15250232,179.84,179.8,9.64607088]
[1761853259552,14.5462016,179.86,179.81,8.98607088]
[1761853259753,4.03766841,179.85,179.82,0.66]
[1761853260357,7.67206035,179.85,179.82,0.66]
[1761853260562,7.46651219,179.93,179.84,8.98607088]
[1761853260854,7.46651219,179.93,179.82,6.22111333]
[1761853260855,27.16973628,179.92,179.87,8.98607088]
[1761853261157,7.672019,179.91,179.87,8.98607088]
[1761853261455,0.2,179.94,179.9,8.98607088]
[1761853261658,0.2,179.94,179.82,19.46390501]
[1761853261659,0.2,179.94,179.92,8.98607088]
[1761853261835,0.2,179.94,179.93,8.98607088]
[1761853262242,0.2,179.94,179.83,11.78882768]
[1761853262243,0.2,179.94,179.89,0.66]
[1761853262567,0.2,179.94,179.91,8.98607088]
[1761853262776,0.2,179.94,179.92,8.98607088]
[1761853263148,0.2,179.94,179.92,9.64607088]
[1761853263482,0.2,179.94,179.86,13.89947117]
[1761853263483,20.592,179.9,179.86,0.66]
[1761853263644,29.57807088,179.9,179.84,8.98607088]
[1761853263842,20.592,179.91,179.83,9.64607088]
[1761853264040,20.592,179.91,179.88,8.98607088]
[1761853264246,20.592,179.91,179.82,9.78882769]
[1761853264247,20.592,179.91,179.89,8.98607088]
[1761853264448,0.2,179.94,179.9,8.98607088]
[1761853264750,0.2,179.94,179.93,8.98607088]
[1761853265153,0.2,179.94,179.93,9.64607088]
[1761853265868,0.2,179.94,179.93,0.66]
[1761853266050,0.2,179.94,179.93,9.64607088]
[1761853266251,0.2,179.94,179.88,0.66]
[1761853266555,20.592,179.91,179.86,8.98607088]
[1761853267076,20.592,179.91,179.88,8.98607088]
[1761853267281,20.592,179.91,179.82,19.46388634]
[1761853267282,8.98607088,179.89,179.82,0.66]
[1761853267480,8.98607088,179.86,179.81,8.98607088]
[1761853267868,3.61782314,179.9,179.82,0.66]
[1761853268168,14.54564168,179.87,179.82,9.64607088]
[1761853268361,14.54564168,179.87,179.82,8.98607088]
[1761853268694,5.5595708,179.87,179.83,8.98607088]
[1761853268889,20.592,179.86,179.84,8.98607088]
[1761853269066,2.89354458,179.95,179.85,8.98607088]
[1761853269265,19.64013667,179.95,179.89,8.98607088]
[1761853269462,13.51794775,179.94,179.91,8.98607088]
[1761853269654,13.51794775,179.94,179.92,8.98607088]
[1761853269655,0.2,179.94,179.92,8.98607088]
[1761853269865,0.2,179.94,179.92,9.68607088]
[1761853270085,20.792,179.94,179.93,8.98607088]
[1761853270297,0.2,179.94,179.92,0.7]
[1761853270512,26.34944725,179.94,179.89,0.7]
[1761853270799,20.592,179.91,179.88,8.98607088]
[1761853271004,20.592,179.91,179.89,8.98607088]
[1761853271380,0.2,179.94,179.9,9.68607088]
[1761853271698,0.2,179.94,179.93,8.98607088]
[1761853272108,0.2,179.94,179.91,0.7]
[1761853272311,5.75741094,179.94,179.9,8.98607088]
[1761853272605,20.592,179.91,179.84,0.7]
[1761853272796,20.592,179.91,179.86,8.98607088]
[1761853272797,29.57807088,179.91,179.86,8.98607088]
[1761853272990,20.592,179.91,179.86,9.68607088]
[1761853273189,20.592,179.91,179.83,5.56079695]
[1761853273190,4.02933294,179.9,179.89,8.98607088]
[1761853273391,20.592,179.91,179.88,8.98607088]
[1761853273789,20.592,179.91,179.88,9.68607088]
[1761853274013,20.592,179.91,179.89,0.7]
[1761853274311,0.2,179.94,179.9,8.98607088]
[1761853274483,7.96886244,179.94,179.91,8.98607088]
[1761853274687,5.75750102,179.94,179.9,9.68607088]
[1761853274894,13.01570281,179.93,179.84,5.5604748]
[1761853275091,8.98607088,179.91,179.85,0.7]
[1761853275294,8.98607088,179.89,179.84,8.98607088]
[1761853275491,29.57807088,179.91,179.85,8.98607088]
[1761853275715,20.592,179.89,179.87,8.98607088]
[1761853276098,20.592,179.9,179.87,9.69607088]
[1761853276293,3.62568808,179.93,179.89,8.98607088]
[1761853276494,20.592,179.91,179.89,8.98607088]
[1761853276684,29.97517121,179.94,179.9,0.71]
[1761853276887,35.33555401,179.94,179.82,9.78882769]
[1761853277201,26.34948313,179.94,179.89,9.69607088]
[1761853277405,20.792,179.94,179.91,8.98607088]
[1761853277786,0.2,179.94,179.91,8.98607088]
[1761853277994,20.592,179.91,179.87,8.98607088]
[1761853278201,29.57807088,179.91,179.85,0.71]
[1761853278405,14.54471457,179.9,179.85,9.69607088]
[1761853278722,28.44132379,179.9,179.84,8.98607088]
[1761853278891,8.98607088,179.88,179.83,8.98607088]
[1761853279086,19.45525291,179.9,179.82,9.69607088]
[1761853279087,20.592,179.87,179.82,9.69607088]
[1761853279424,8.98607088,179.86,179.81,8.98607088]
[1761853279897,29.57807088,179.87,179.81,8.98607088]
[1761853280214,29.57807088,179.87,179.6,43.94053087]
[1761853280215,20.592,179.87,179.86,8.98607088]
[1761853280412,22.88182825,179.92,179.86,8.98607088]
[1761853280602,16.75425938,179.91,179.86,8.98607088]
[1761853280807,4.02920615,179.9,179.86,8.98607088]
[1761853281189,3.62585388,179.92,179.87,9.69607088]
[1761853281497,14.74353891,179.94,179.89,8.98607088]
[1761853281686,7.77345642,179.93,179.89,8.98607088]
[1761853281886,20.592,179.91,179.89,8.98607088]
[1761853282123,5.75746803,179.94,179.9,8.98607088]
[1761853282411,26.34946803,179.94,179.9,9.69607088]
[1761853282621,26.34946803,179.94,179.91,8.98607088]
[1761853282622,20.592,179.92,179.91,8.98607088]
[1761853282823,0.2,179.94,179.91,8.98607088]
[1761853283024,4.2344602,179.94,179.91,9.69607088]
[1761853283199,4.2344602,179.94,179.9,5.55852118]
[1761853283200,0.2,179.94,179.93,8.98607088]
[1761853283395,5.75740802,179.94,179.82,1.99999999]
[1761853283597,7.77663854,179.93,179.88,8.98607088]
[1761853283898,7.77663854,179.93,179.84,0.71]
[1761853283899,20.592,179.9,179.89,8.98607088]
[1761853284100,20.592,179.91,179.89,8.98607088]
[1761853284290,20.592,179.91,179.89,9.69607088]
[1761853284496,20.592,179.91,179.9,8.98607088]
[1761853284719,26.34944613,179.94,179.9,8.98607088]
[1761853284929,20.792,179.94,179.9,9.69607088]
[1761853285222,20.592,179.92,179.9,0.71]
[1761853285403,20.592,179.92,179.89,8.98607088]
[1761853285613,14.74354153,179.94,179.85,6.27018904]
[1761853285924,37.97870325,179.93,179.86,8.98607088]
[1761853286112,8.98607088,179.91,179.86,8.98607088]
[1761853286305,8.98607088,179.91,179.87,8.98607088]
[1761853286306,5.55833472,179.91,179.87,8.98607088]
[1761853286819,5.55833472,179.91,179.86,8.98607088]
[1761853287128,29.57807088,179.87,179.79,6.2720446]
[1761853287429,8.98607088,179.85,179.79,0.71]
[1761853287719,20.592,179.83,179.81,8.98607088]
[1761853288225,20.592,179.83,179.81,0.71]
[1761853288402,20.592,179.83,179.82,0.71]
[1761853288603,20.592,179.83,179.8,8.98607088]
[1761853288921,20.592,179.83,179.81,0.71]
[1761853289125,20.592,179.83,179.81,9.69607088]
[1761853289423,0.62,179.92,179.82,8.98607088]
[1761853289608,8.98607088,179.89,179.83,8.98607088]
[1761853289810,7.80075442,179.88,179.83,8.98607088]
[1761853290011,16.7868253,179.87,179.82,9.69607088]
[1761853290214,4.04570121,179.86,179.82,8.98607088]
[1761853290393,5.56049822,179.84,179.8,8.98607088]
[1761853290597,4.04570121,179.83,179.8,8.98607088]
[1761853290821,4.04570121,179.83,179.81,0.71]
[1761853291026,3.64016813,179.85,179.81,9.69607088]
[1761853291223,4.05170954,179.84,179.81,0.71]
[1761853291424,7.81620781,179.84,179.79,0.71]
[1761853291627,7.81659261,179.83,179.8,0.71]
[1761853291800,4.05170954,179.82,179.8,0.71]
[1761853292002,4.05599831,179.81,179.79,8.98607088]
[1761853292224,3.64016813,179.84,179.79,8.98607088]
[1761853292435,7.82451329,179.83,179.79,9.69607088]
[1761853292641,4.05779141,179.82,179.8,0.71]
[1761853292835,5.56059352,179.84,179.8,0.71]
[1761853293042,7.82560708,179.83,179.8,0.71]
[1761853293335,7.82562275,179.82,179.8,0.71]
[1761853293544,4.05825133,179.81,179.8,9.69607088]
[1761853293745,3.64016813,179.86,179.81,0.71]
[1761853294047,7.82677965,179.85,179.81,9.69607088]
[1761853294242,7.82677965,179.84,179.82,8.98607088]
[1761853294422,3.64016813,179.86,179.83,8.98607088]
[1761853294624,4.0611531,179.85,179.84,8.98607088]
[1761853294824,33.21823901,179.89,179.84,8.98607088]
[1761853295032,11.48405499,179.88,179.84,8.98607088]
[1761853295230,7.84388686,179.87,179.84,8.98607088]
[1761853295525,4.06157632,179.86,179.84,0.71]
[1761853295717,4.06157632,179.86,179.81,6.27142594]
[1761853295917,3.78217625,179.85,179.82,9.69607088]
[1761853296146,3.78217625,179.85,179.83,0.71]
[1761853296147,4.06157632,179.84,179.83,0.71]
[1761853296359,3.64016813,179.86,179.83,15.25658897]
[1761853296648,20.592,179.88,179.85,8.98607088]
[1761853296841,4.06125352,179.87,179.85,8.98607088]
[1761853297039,4.06021644,179.86,179.84,8.98607088]
[1761853297251,8.98607088,179.88,179.82,0.71]
[1761853297553,7.84160682,179.87,179.84,8.98607088]
[1761853297754,4.06042741,179.86,179.84,8.98607088]
[1761853298045,4.06042741,179.86,179.85,9.69607088]
[1761853298213,7.70059554,179.87,179.85,8.98607088]
[1761853298419,4.06042741,179.86,179.83,0.71]
[1761853299349,8.98607088,179.85,179.79,0.71]
[1761853299527,9.62031896,179.86,179.79,0.71]
[1761853299528,8.98607088,179.83,179.79,0.71]
[1761853299719,4.06042741,179.82,179.79,0.71]
[1761853299920,8.98607088,179.84,179.79,0.71]
[1761853300124,7.84036875,179.83,179.79,0.71]
[1761853300326,4.05944652,179.82,179.79,0.71]
[1761853300526,20.592,179.85,179.79,6.27192866]
[1761853300745,7.8427589,179.84,179.79,0.71]
[1761853300938,7.8427589,179.84,179.75,0.71]
[1761853300939,8.98607088,179.81,179.75,0.71]
[1761853301258,8.98607088,179.81,179.74,15.35241954]
[1761853301259,8.98607088,179.81,179.76,9.69607088]
[1761853301554,5.90956648,179.82,179.76,0.71]
[1761853301753,4.06027361,179.81,179.77,0.71]
[1761853301953,9.96984009,179.81,179.77,0.71]
[1761853302127,20.592,179.82,179.77,6.61956648]
[1761853302332,26.50156648,179.82,179.77,6.61956648]
[1761853302541,26.50156648,179.82,179.78,6.27235398]
[1761853302849,14.518927,179.87,179.8,5.90956648]
[1761853302850,20.592,179.87,179.8,5.90956648]
[1761853303151,7.84523903,179.86,179.79,6.61956648]
[1761853303328,7.84523903,179.85,179.79,6.61956648]
[1761853303533,4.061936,179.84,179.81,5.90956648]
[1761853303727,24.24802777,179.85,179.8,0.71]
[1761853303931,24.24802777,179.85,179.8,6.61956648]
[1761853303932,26.50156648,179.85,179.8,6.61956648]
[1761853304152,20.592,179.85,179.82,5.90956648]
[1761853304334,3.65880777,179.92,179.84,5.90956648]
[1761853304531,5.90956648,179.9,179.85,12.17975552]
[1761853304852,7.85085252,179.89,179.86,0.71]
[1761853305066,4.06525255,179.88,179.86,0.71]
[1761853305241,5.90956648,179.87,179.8,0.71]
[1761853305432,7.85117228,179.86,179.81,0.71]
[1761853305756,4.06525255,179.85,179.81,0.71]
[1761853305925,9.97481903,179.85,179.81,0.71]
[1761853306131,5.90956648,179.84,179.81,0.71]
[1761853306452,5.90956648,179.84,179.81,6.27138557]
[1761853306667,3.65880777,179.87,179.82,5.90956648]
[1761853306837,20.592,179.87,179.83,5.90956648]
[1761853307151,20.592,179.87,179.81,19.46495044]
[1761853307152,3.65880777,179.87,179.84,0.71]
[1761853307354,5.90956648,179.88,179.84,0.71]
[1761853307552,4.06583573,179.87,179.84,0.71]
[1761853307761,4.06583573,179.87,179.84,6.61956648]
[1761853307974,3.65880777,179.89,179.84,0.71]
[1761853308276,20.592,179.9,179.85,0.71]
[1761853308277,7.85210533,179.88,179.85,0.71]
[1761853308567,4.06594761,179.87,179.85,6.27014349]
[1761853308866,3.65880777,179.89,179.85,12.17970997]
[1761853309040,4.06606276,179.88,179.85,12.17970997]
[1761853309241,4.06606276,179.87,179.85,12.17970997]
[1761853309438,3.65880777,179.89,179.86,6.61956648]
[1761853309640,4.06630168,179.88,179.86,6.61956648]
[1761853309852,24.25080777,179.9,179.86,0.71]
[1761853310059,7.8330861,179.89,179.86,0.71]
[1761853310242,4.06644938,179.88,179.86,0.71]
[1761853310634,3.65880777,179.89,179.86,0.71]
[1761853310866,4.06779439,179.88,179.86,6.26976893]
[1761853311104,4.06779439,179.88,179.87,5.90956648]
[1761853311235,15.12620399,179.93,179.87,6.61956648]
[1761853311568,5.90956648,179.89,179.85,0.71]
[1761853311764,5.90956648,179.87,179.82,0.71]
[1761853311940,4.06871849,179.86,179.82,0.71]
[1761853312145,9.97828497,179.86,179.82,0.71]
[1761853312344,4.06871849,179.85,179.82,6.61956648]
[1761853312551,15.1277767,179.88,179.82,12.18056415]
[1761853312773,5.90956648,179.86,179.81,6.61956648]
[1761853313065,4.06871451,179.85,179.81,6.61956648]
[1761853313242,4.06871451,179.85,179.82,0.71]
[1761853313642,5.55933241,179.88,179.82,0.71]
[1761853313839,5.90956648,179.86,179.82,0.71]
[1761853314087,4.06891139,179.85,179.82,0.71]
[1761853314364,5.90956648,179.87,179.82,6.61956648]
[1761853314543,4.06911529,179.86,179.82,6.61956648]
[1761853314744,9.97868177,179.86,179.8,0.71]
[1761853314950,13.74743958,179.85,179.79,13.90510438]
[1761853315185,5.90956648,179.83,179.78,5.56235398]
[1761853315354,5.90956648,179.83,179.79,0.71]
[1761853315675,20.592,179.86,179.8,5.90956648]
[1761853315878,7.83845759,179.85,179.8,5.90956648]
[1761853316081,5.90956648,179.86,179.81,0.71]
[1761853316253,5.90956648,179.88,179.82,5.90956648]
[1761853316450,4.06991989,179.87,179.83,5.90956648]
[1761853316667,4.06991989,179.87,179.84,5.56049822]
[1761853316888,4.06991989,179.87,179.84,6.27049822]
[1761853317069,4.06991989,179.87,179.85,0.71]
[1761853317996,4.06991989,179.87,179.86,5.90956648]
[1761853318164,20.592,179.9,179.86,6.61956648]
[1761853318364,5.55796309,179.93,179.87,6.61956648]
[1761853318365,4.07341237,179.89,179.87,6.61956648]
[1761853318569,5.90956648,179.91,179.87,0.71]
[1761853318873,7.84615741,179.9,179.88,0.71]
[1761853319083,4.07341666,179.89,179.88,0.71]
[1761853319287,4.07341666,179.91,179.88,0.71]
[1761853319588,4.07341666,179.9,179.89,5.90956648]
[1761853319774,4.07341666,179.93,179.89,5.90956648]
[1761853319976,7.84643979,179.92,179.9,0.71]
[1761853320195,4.07341666,179.91,179.9,0.71]
[1761853320373,6.10956648,179.94,179.83,9.78882769]
[1761853320374,9.98298314,179.93,179.86,0.71]
[1761853320565,9.98298314,179.93,179.84,6.27049822]
[1761853320566,5.90956648,179.91,179.84,6.27049822]
[1761853320889,5.90956648,179.89,179.85,5.56008549]
[1761853321089,7.84640716,179.88,179.85,5.56008549]
[1761853321292,4.07341666,179.87,179.86,0.71]
[1761853321598,9.68246237,179.87,179.82,0.71]
[1761853321769,5.90956648,179.84,179.79,12.18161108]
[1761853321975,4.07341666,179.83,179.79,6.2720446]
[1761853322168,5.90956648,179.84,179.79,6.2720446]
[1761853322375,13.75494232,179.83,179.79,6.2720446]
[1761853322576,4.07262826,179.82,179.8,0.71]
[1761853322800,5.90956648,179.85,179.81,5.56142594]
[1761853322986,5.90956648,179.82,179.78,0.71]
[1761853323190,9.98148783,179.81,179.8,0.71]
[1761853323386,4.07192135,179.81,179.8,0.71]
[1761853323692,4.07192135,179.81,179.75,5.56328233]
[1761853323894,5.90956648,179.79,179.72,9.78882769]
[1761853324125,5.90956648,179.76,179.73,0.71]
[1761853324685,9.97924075,179.75,179.7,12.18411482]
[1761853325010,5.90956648,179.74,179.7,5.56454834]
[1761853325180,5.90956648,179.74,179.7,6.27454834]
[1761853325379,5.90956648,179.75,179.71,0.71]
[1761853325581,5.90956648,179.76,179.71,6.61956648]
[1761853325799,5.90956648,179.76,179.72,0.71]
[1761853325996,26.50156648,179.78,179.73,5.90956648]
[1761853326312,26.50156648,179.78,179.72,5.90956648]
[1761853326480,9.9772245,179.77,179.71,6.61956648]
[1761853326801,5.90956648,179.74,179.69,0.71]
[1761853327006,5.90956648,179.73,179.69,6.27483228]
[1761853327387,5.90956648,179.73,179.7,0.71]
[1761853328006,5.90956648,179.74,179.7,0.71]
[1761853328512,5.5626634,179.77,179.7,0.71]
[1761853328724,5.90956648,179.73,179.7,0.71]
[1761853328898,5.90956648,179.71,179.63,0.71]
[1761853329216,5.90956648,179.64,179.61,5.56761872]
[1761853329418,24.65402719,179.7,179.6,7.58098999]
[1761853329419,5.90956648,179.63,179.6,13.14891024]
[1761853329787,5.90956648,179.65,179.61,0.69]
[1761853330021,5.90956648,179.67,179.61,6.59956648]
[1761853330398,5.90956648,179.67,179.62,0.69]
[1761853330722,20.592,179.68,179.63,5.56699883]
[1761853331018,5.90956648,179.68,179.63,19.4844959]
[1761853332292,5.90956648,179.68,179.65,0.69]
[1761853333015,5.90956648,179.68,179.65,6.25625074]
[1761853333399,5.90956648,179.66,179.6,27.40966625]
[1761853333661,5.90956648,179.64,179.6,6.89098999]
[1761853333790,5.90956648,179.62,179.6,6.89098999]
[1761853333984,5.90956648,179.61,179.6,6.89098999]
[1761853334190,5.90956648,179.61,179.57,146.84]
[1761853334191,12.33690689,179.61,179.57,146.84]
[1761853334435,12.33690689,179.61,179.42,0.1]
[1761853334436,2.897,179.52,179.42,0.1]
[1761853334587,9.78882769,179.51,179.26,1.99999999]
[1761853334792,5.90956648,179.4,179.31,4.57040303]
[1761853334992,5.90956648,179.4,179.25,36.27066115]
[1761853334993,2.897,179.52,179.38,6.59956648]
[1761853335220,23.489,179.52,179.38,0.69]
[1761853335390,23.489,179.52,179.39,0.68]
[1761853335591,23.489,179.52,179.43,5.90956648]
[1761853336002,23.489,179.52,179.45,5.90956648]
[1761853336198,23.489,179.52,179.44,0.68]
[1761853336199,29.39856648,179.52,179.44,0.68]